fUST/lending_fUST_20240312
["ID","MTS","AMOUNT","RATE_DAILY","PERIOD"]
[318396647,1710216641662,-2625.22,0.00015498,2]
[318396650,1710216641673,-2625.22,0.00015498,2]
[318396652,1710216641683,-417.88835223,0.00015498,2]
[318396653,1710216641693,-2066.99,0.00015498,2]
[318396655,1710216641703,-2066.99,0.00015498,2]
[318396657,1710216641712,-2066.99,0.00015498,2]
[318396659,1710216641725,-2066.99,0.00015498,2]
[318396661,1710216641735,-2066.99,0.00015498,2]
[318396663,1710216641744,-359.43,0.00015498,2]
[318396665,1710216641753,-155.42476489,0.00015498,2]
[318396667,1710216641763,-498.20367663,0.00015499,2]
[318396669,1710216641772,-151.0,0.00015499,2]
[318396671,1710216641781,-151.0,0.00015499,2]
[318396673,1710216641791,-151.0,0.00015499,2]
[318396675,1710216641801,-151.0,0.00015499,2]
[318396677,1710216641812,-500.0,0.00015499,2]
[318396679,1710216641821,-500.0,0.00015499,2]
[318396681,1710216641831,-500.0,0.00015499,2]
[318396683,1710216641840,-500.0,0.00015499,2]
[318396685,1710216641850,-500.0,0.00015499,2]
[318396687,1710216641859,-500.0,0.00015499,2]
[318396689,1710216641869,-503.48096568,0.00015499,2]
[318396692,1710216641880,-500.0,0.00015499,2]
[318396693,1710216641889,-500.0,0.00015499,2]
[318396696,1710216641900,-500.0,0.00015499,2]
[318396698,1710216641910,-500.0,0.00015499,2]
[318396700,1710216641920,-500.0,0.00015499,2]
[318396702,1710216641929,-500.0,0.00015499,2]
[318396704,1710216641939,-248.53432202,0.00015499,2]
[318396706,1710216641949,-500.0,0.00015499,2]
[318396708,1710216641958,-500.0,0.00015499,2]
[318396710,1710216641968,-500.0,0.00015499,2]
[318396711,1710216641978,-500.0,0.00015499,2]
[318396714,1710216641989,-500.0,0.00015499,2]
[318396716,1710216642001,-410.92917196,0.00015499,2]
[318396718,1710216642011,-500.0,0.00015499,2]
[318396719,1710216642021,-377.10361154,0.00015499,2]
[318396721,1710216642032,-508.47,0.00015499,2]
[318396723,1710216642042,-508.47,0.00015499,2]
[318396725,1710216642051,-508.47,0.00015499,2]
[318396728,1710216642061,-508.47,0.00015499,2]
[318396730,1710216642070,-508.47,0.00015499,2]
[318396731,1710216642081,-508.47,0.00015499,2]
[318396734,1710216642091,-508.47,0.00015499,2]
[318396736,1710216642102,-508.47,0.00015499,2]
[318396738,1710216642111,-508.47,0.00015499,2]
[318396740,1710216642121,-508.47,0.00015499,2]
[318396742,1710216642129,-508.47,0.00015499,2]
[318396744,1710216642138,-508.47,0.00015499,2]
[318396746,1710216642147,-508.47,0.00015499,2]
[318396748,1710216642156,-508.47,0.00015499,2]
[318396750,1710216642165,-508.47,0.00015499,2]
[318396752,1710216642174,-508.47,0.00015499,2]
[318396753,1710216642183,-508.69526792,0.00015499,2]
[318396755,1710216642192,-357.07841182,0.00015499,2]
[318396757,1710216642203,-500.0,0.00015499,2]
[318396759,1710216642213,-500.0,0.00015499,2]
[318396761,1710216642223,-500.0,0.00015499,2]
[318396763,1710216642233,-500.0,0.00015499,2]
[318396765,1710216642243,-500.0,0.00015499,2]
[318396767,1710216642255,-500.0,0.00015499,2]
[318396769,1710216642266,-506.06796324,0.00015499,2]
[318396771,1710216642276,-4110.97,0.00015499,2]
[318396773,1710216642286,-4110.97,0.00015499,2]
[318396775,1710216642296,-4110.97,0.00015499,2]
[318396777,1710216642306,-4110.97,0.00015499,2]
[318396779,1710216642316,-4110.97,0.00015499,2]
[318396781,1710216642326,-4110.97,0.00015499,2]
[318396783,1710216642338,-4110.97,0.00015499,2]
[318396785,1710216642347,-4110.97,0.00015499,2]
[318396787,1710216642356,-4110.97,0.00015499,2]
[318396789,1710216642365,-4110.97,0.00015499,2]
[318396791,1710216642373,-4110.97,0.00015499,2]
[318396793,1710216642382,-4110.97,0.00015499,2]
[318396795,1710216642391,-4110.97,0.00015499,2]
[318396797,1710216642401,-4110.97,0.00015499,2]
[318396799,1710216642410,-4110.97,0.00015499,2]
[318396801,1710216642420,-4110.97,0.00015499,2]
[318396803,1710216642429,-4111.20486549,0.00015499,2]
[318396805,1710216642439,-500.0,0.00015499,2]
[318396807,1710216642448,-500.0,0.00015499,2]
[318396809,1710216642458,-500.0,0.00015499,2]
[318396811,1710216642467,-500.0,0.00015499,2]
[318396813,1710216642476,-2625.22,0.00015499,2]
[318396815,1710216642485,-2625.22,0.00015499,2]
[318396817,1710216642494,-2625.22,0.00015499,2]
[318396819,1710216642504,-2625.22,0.00015499,2]
[318396821,1710216642513,-2625.22,0.00015499,2]
[318396823,1710216642523,-2625.22,0.00015499,2]
[318396825,1710216642532,-2625.22,0.00015499,2]
[318396827,1710216642541,-2625.22,0.00015499,2]
[318396829,1710216642551,-2625.22,0.00015499,2]
[318396832,1710216642561,-2625.22,0.00015499,2]
[318396833,1710216642570,-2625.22,0.00015499,2]
[318396835,1710216642579,-2625.22,0.00015499,2]
[318396837,1710216642590,-2625.22,0.00015499,2]
[318396839,1710216642599,-2625.22,0.00015499,2]
[318396841,1710216642608,-2625.22,0.00015499,2]
[318396843,1710216642617,-2625.22,0.00015499,2]
[318396845,1710216642631,-2625.27683267,0.00015499,2]
[318396847,1710216642641,-2066.99,0.00015499,2]
[318396849,1710216642650,-2066.99,0.00015499,2]
[318396851,1710216642660,-2066.99,0.00015499,2]
[318396853,1710216642670,-2066.99,0.00015499,2]
[318396855,1710216642679,-2066.99,0.00015499,2]
[318396857,1710216642689,-2066.99,0.00015499,2]
[318396859,1710216642698,-2066.99,0.00015499,2]
[318396861,1710216642708,-2066.99,0.00015499,2]
[318396863,1710216642718,-2066.99,0.00015499,2]
[318396865,1710216642727,-2066.99,0.00015499,2]
[318396867,1710216642737,-2066.99,0.00015499,2]
[318396869,1710216642745,-2066.99,0.00015499,2]
[318396871,1710216642755,-2066.99,0.00015499,2]
[318396873,1710216642764,-2066.99,0.00015499,2]
[318396876,1710216642773,-2066.99,0.00015499,2]
[318396879,1710216642783,-2066.99,0.00015499,2]
[318396882,1710216642793,-2067.13160265,0.00015499,2]
[318396885,1710216642803,-213280.64491263,0.000155,2]
[318396889,1710216642817,-2236.21874578,0.000155,2]
[318397019,1710216643962,-37049.51571598,0.000155,2]
[318397022,1710216643977,-22582.47139884,0.000155,2]
[318397430,1710216647957,-460.0,0.000155,2]
[318400175,1710217833278,-3500.01988252,0.00014164,2]
[318400176,1710217833289,-1724.00319146,0.00014165,2]
[318400177,1710217833300,-1697.47590571,0.0001475,2]
[318400178,1710217833310,-80187.35916086,0.00015,2]
[318400179,1710217833324,-3584.49566836,0.00015,2]
[318400209,1710217838622,-37216.11866527,0.00015,2]
[318400211,1710217838631,-345.85110701,0.00015068,2]
[318400213,1710217838641,-171.18491128,0.00015345,2]
[318400215,1710217838652,-500.0,0.00015497,2]
[318400217,1710217838661,-500.0,0.00015497,2]
[318400219,1710217838671,-155.14739002,0.00015497,2]
[318400221,1710217838680,-500.0,0.00015498,2]
[318400223,1710217838689,-586.90104418,0.00015498,2]
[318400225,1710217838698,-188.47150508,0.00015498,2]
[318400227,1710217838707,-155.2163805,0.00015498,2]
[318400229,1710217838717,-139.60444016,0.00015498,2]
[318400231,1710217838728,-506.48176332,0.00015498,2]
[318400418,1710217840612,-828.3255707,0.00015498,2]
[318400420,1710217840622,-155.25350392,0.00015498,2]
[318400422,1710217840631,-331.25647707,0.00015498,2]
[318400424,1710217840641,-155.24266612,0.00015498,2]
[318400426,1710217840650,-3095.76475599,0.00015498,2]
[318400428,1710217840662,-1279.04953872,0.00015498,2]
[318400430,1710217840673,-297.91664767,0.00015498,2]
[318400433,1710217840685,-3983.9,0.00015498,2]
[318400436,1710217840695,-403.5335302,0.00015498,2]
[318400449,1710217840791,-362.68449822,0.00015498,2]
[318401102,1710217846731,-1570.1803617,0.00015498,2]
[318411734,1710219032870,-261.5187114,0.00014161,2]
[318411735,1710219032880,-1165.2238495,0.00014341,2]
[318411736,1710219032889,-400.705345,0.00014449,2]
[318411737,1710219032898,-173.322455,0.00015022,2]
[318411738,1710219032908,-159.625204,0.00015022,2]
[318411739,1710219032917,-155.14739002,0.00015068,2]
[318411740,1710219032926,-501.22953374,0.00015068,2]
[318411741,1710219032937,-159.625204,0.00015398,2]
[318411742,1710219032946,-9370.76287889,0.000154,2]
[318411743,1710219032955,-120.21978831,0.000154,2]
[318411771,1710219038726,-692.33521069,0.000154,2]
[318411773,1710219038735,-826.00499673,0.000154,2]
[318411778,1710219038782,-618.74397105,0.000154,2]
[318411786,1710219038842,-522.04946857,0.000154,2]
[318411943,1710219040752,-10869.37965766,0.00015246,2]
[318411944,1710219040762,-28033.20156365,0.000154,2]
[318411945,1710219040772,-1097.33822469,0.00015498,2]
[318411946,1710219040815,-8417.50276085,0.00015498,2]
[318411947,1710219040824,-498.20367663,0.00015498,2]
[318411948,1710219040834,-295.16006919,0.00015498,2]
[318411949,1710219040845,-1776.89886854,0.00015498,2]
[318411950,1710219040855,-822.9141787,0.00015498,2]
[318411951,1710219040866,-11858.37868905,0.00015498,2]
[318411952,1710219040877,-4728.516748,0.00015498,2]
[318411953,1710219040889,-1617.82081685,0.00015498,2]
[318411954,1710219040898,-528.65561539,0.00015498,2]
[318411955,1710219040907,-281.40597559,0.00015498,2]
[318411956,1710219040916,-279.12786067,0.00015498,2]
[318411957,1710219040925,-524.47552081,0.00015498,2]
[318411958,1710219040935,-325.90517914,0.00015498,2]
[318411959,1710219040946,-500.0,0.00015498,2]
[318411960,1710219040955,-500.41252219,0.00015498,2]
[318411961,1710219040964,-833.41,0.00015498,2]
[318411962,1710219040973,-833.41,0.00015498,2]
[318411963,1710219040982,-339.90358686,0.00015499,2]
[318411964,1710219040992,-11683.27662623,0.00015499,2]
[318411978,1710219043852,-616.39026638,0.00015499,2]
[318411991,1710219046859,-1189.14690157,0.00015499,2]
[318412007,1710219276792,394.15376432,0.00027,120]
[318415411,1710220240005,-160.42291395,0.00013558,2]
[318415413,1710220240015,-331.37218946,0.00013559,2]
[318415414,1710220240024,-1700.25654267,0.0001356,2]
[318415416,1710220240035,-1557.81125677,0.0001356,2]
[318415531,1710220243075,-241.95208308,0.0001356,2]
[318415533,1710220243084,-3831.39207198,0.00013561,2]
[318415534,1710220243093,-3000.0,0.00013699,2]
[318415535,1710220243102,-2000.0,0.00014,2]
[318415537,1710220243111,-615.4254903,0.00014234,2]
[318415538,1710220243121,-200.352672,0.00014274,2]
[318415540,1710220243130,-31279.99512634,0.00015,2]
[318415541,1710220243139,-153.0,0.000154,2]
[318415542,1710220243148,-323.0249995,0.000154,2]
[318415544,1710220243158,-624.4418368,0.00015498,2]
[318415545,1710220243167,-1951.90972773,0.00015498,2]
[318415546,1710220243176,-192.17005506,0.00015498,2]
[318415548,1710220243185,-1474.41177418,0.00015498,2]
[318415549,1710220243194,-528.65561539,0.00015498,2]
[318415550,1710220243203,-763.96,0.00015498,2]
[318415552,1710220243212,-763.96,0.00015498,2]
[318415553,1710220243221,-1824.18021769,0.00015499,2]
[318415554,1710220243232,-13748.41357429,0.00015499,2]
[318415556,1710220243243,-763.96,0.00015499,2]
[318415557,1710220243253,-763.96,0.00015499,2]
[318415559,1710220243262,-763.96,0.00015499,2]
[318415560,1710220243271,-763.96,0.00015499,2]
[318415561,1710220243280,-763.96,0.00015499,2]
[318415563,1710220243289,-763.96,0.00015499,2]
[318415564,1710220243298,-763.96,0.00015499,2]
[318415565,1710220243308,-763.96,0.00015499,2]
[318415567,1710220243318,-763.96,0.00015499,2]
[318415568,1710220243327,-763.96,0.00015499,2]
[318415569,1710220243336,-763.96,0.00015499,2]
[318415571,1710220243344,-763.96,0.00015499,2]
[318415572,1710220243354,-763.96,0.00015499,2]
[318415573,1710220243363,-763.96,0.00015499,2]
[318415575,1710220243372,-763.96,0.00015499,2]
[318415576,1710220243381,-763.96,0.00015499,2]
[318415578,1710220243390,-763.96,0.00015499,2]
[318415579,1710220243398,-763.96,0.00015499,2]
[318415580,1710220243407,-763.96,0.00015499,2]
[318415582,1710220243416,-763.96,0.00015499,2]
[318415583,1710220243426,-763.96,0.00015499,2]
[318415584,1710220243436,-764.00078732,0.00015499,2]
[318415586,1710220243445,-81382.14721834,0.000155,2]
[318415692,1710220246602,-25767.42495729,0.000155,2]
[318419632,1710221432098,-331.37218946,0.00013352,2]
[318419634,1710221432109,-160.42291395,0.00013353,2]
[318419636,1710221432119,-92.98489659,0.00013354,2]
[318419639,1710221432131,-238.38729287,0.00013354,2]
[318419641,1710221432140,-10509.0239435,0.0001368,2]
[318419643,1710221432149,-200.352672,0.00013699,2]
[318419645,1710221432158,-34309.76940449,0.000148,2]
[318419647,1710221432168,-91935.80772807,0.00015,2]
[318419649,1710221432177,-5000.0,0.00015033,2]
[318419651,1710221432187,-153.0,0.000151,2]
[318419653,1710221432197,-201.0348662,0.000151,2]
[318419655,1710221432206,-201.0348662,0.000151,2]
[318419657,1710221432217,-246.4184521,0.00015352,2]
[318419659,1710221432226,-124366.39026888,0.000154,2]
[318419661,1710221432236,-201.0608458,0.000154,2]
[318419663,1710221432245,-201.0608458,0.000154,2]
[318419665,1710221432254,-201.0608458,0.000154,2]
[318419667,1710221432264,-201.0608458,0.000154,2]
[318419669,1710221432274,-153.0,0.000154,2]
[318419671,1710221432284,-404.7251548,0.000154,2]
[318419673,1710221432294,-154.0707018,0.000154,2]
[318419675,1710221432304,-153.0,0.000154,2]
[318419677,1710221432314,-201.0348662,0.000154,2]
[318419679,1710221432325,-596.19717157,0.00015498,2]
[318419681,1710221432335,-212.08309675,0.00015498,2]
[318419683,1710221432347,-187.21060044,0.00015498,2]
[318419685,1710221432357,-155.24906658,0.00015498,2]
[318419687,1710221432367,-498.20367663,0.00015499,2]
[318419689,1710221432378,-9206.35842999,0.00015499,2]
[318419691,1710221432387,-10176.729997,0.000155,2]
[318420015,1710221438051,-3524.86780328,0.00015345,2]
[318420017,1710221438061,-102.94297853,0.000155,2]
[318420023,1710221438110,-2443.03802611,0.000155,2]
[318420346,1710221441909,-45099.952902,0.000155,2]
[318420474,1710221443193,-7619.66438143,0.000155,2]
[318425546,1710222344657,1878.66906179,0.00027,120]
[318426173,1710222643321,-160.42291395,0.00013782,2]
[318426175,1710222643330,-135.27708596,0.00013783,2]
[318426181,1710222643380,-25.14582799,0.00013783,2]
[318426183,1710222643390,-622.13671287,0.00014393,2]
[318426514,1710222646534,-2888.02773093,0.00014393,2]
[318426516,1710222646546,-342.36884967,0.00014393,2]
[318426522,1710222646588,-3851.94548805,0.00014393,2]
[318426530,1710222646655,-4351.215956,0.00014249,2]
[318426532,1710222646665,-5861.8646508,0.00014393,2]
[318429837,1710222871583,195.92427644,0.00027,120]
[318429838,1710223279195,4695.81786359,0.00027,120]
[318429843,1710223742081,385.0,0.0001,2]
[318429846,1710223800377,155.18622347,0.0001,2]
[318429847,1710223802033,687.04591387,0.0001,2]
[318429848,1710223817493,2072.05893773,0.0001,2]
[318429849,1710223818351,155.18622347,0.0001,2]
[318429850,1710223819967,686.83043577,0.0001,2]
[318429864,1710223832436,-160.42291395,0.00013549,2]
[318429865,1710223832447,-160.42291395,0.00014105,2]
[318429866,1710223832457,-14416.86759405,0.00014474,2]
[318429875,1710223833762,2072.05893773,0.0001,2]
[318429876,1710223834322,155.18622347,0.0001,2]
[318429916,1710223838887,-8195.59766145,0.00014329,2]
[318429918,1710223838897,-8195.59766145,0.00014474,2]
[318429920,1710223838907,-2496.68859604,0.000154,2]
[318429922,1710223838916,-260.9481676,0.00015498,2]
[318429924,1710223838925,-155.29760974,0.00015498,2]
[318429926,1710223838934,-331.02505229,0.00015499,2]
[318429928,1710223838944,-516.27703272,0.00015499,2]
[318429930,1710223838953,-500.0,0.00015499,2]
[318429932,1710223838962,-500.0,0.00015499,2]
[318429934,1710223838972,-309.63646784,0.00015499,2]
[318429936,1710223838980,-500.0,0.00015499,2]
[318429937,1710223838991,-500.0,0.00015499,2]
[318429939,1710223839000,-251.55474337,0.00015499,2]
[318429941,1710223839010,-500.0,0.00015499,2]
[318429943,1710223839019,-500.0,0.00015499,2]
[318429945,1710223839029,-500.0,0.00015499,2]
[318429947,1710223839038,-500.0,0.00015499,2]
[318429950,1710223839047,-500.0,0.00015499,2]
[318429951,1710223839057,-500.0,0.00015499,2]
[318429954,1710223839066,-500.0,0.00015499,2]
[318429955,1710223839075,-500.0,0.00015499,2]
[318429957,1710223839084,-626.24,0.00015499,2]
[318429959,1710223839094,-833.41,0.00015499,2]
[318429961,1710223839103,-833.41,0.00015499,2]
[318429963,1710223839112,-833.41,0.00015499,2]
[318429965,1710223839121,-833.41,0.00015499,2]
[318429967,1710223839130,-833.41,0.00015499,2]
[318429969,1710223839141,-833.41,0.00015499,2]
[318429971,1710223839151,-833.41,0.00015499,2]
[318429973,1710223839160,-833.41,0.00015499,2]
[318429975,1710223839169,-833.41,0.00015499,2]
[318429977,1710223839178,-833.41,0.00015499,2]
[318429979,1710223839187,-833.41,0.00015499,2]
[318429981,1710223839196,-833.41,0.00015499,2]
[318429983,1710223839206,-833.41,0.00015499,2]
[318429985,1710223839215,-833.41,0.00015499,2]
[318429987,1710223839225,-833.41,0.00015499,2]
[318429989,1710223839234,-409.9870074,0.00015499,2]
[318429992,1710223839246,-423.4229926,0.00015499,2]
[318429994,1710223839255,-833.41,0.00015499,2]
[318429996,1710223839264,-833.41,0.00015499,2]
[318429998,1710223839272,-833.41,0.00015499,2]
[318429999,1710223839281,-833.41,0.00015499,2]
[318430001,1710223839291,-833.41,0.00015499,2]
[318430003,1710223839300,-833.41,0.00015499,2]
[318430005,1710223839309,-833.41,0.00015499,2]
[318430007,1710223839318,-833.57220187,0.00015499,2]
[318430009,1710223839327,-500.0,0.00015499,2]
[318430011,1710223839336,-500.0,0.00015499,2]
[318430013,1710223839345,-500.0,0.00015499,2]
[318430015,1710223839354,-500.0,0.00015499,2]
[318430017,1710223839363,-500.0,0.00015499,2]
[318430019,1710223839372,-500.0,0.00015499,2]
[318430020,1710223839381,-406.87243515,0.00015499,2]
[318430022,1710223839392,-547.69938352,0.000155,2]
[318430449,1710223843521,-656.59244435,0.000154,2]
[318430451,1710223843531,-13463.92140538,0.000155,2]
[318430454,1710223843543,-786.219995,0.000155,2]
[318432007,1710223983202,9968.38,0.0001175,2]
[318432008,1710224025443,19027.6304326,0.0001175,2]
[318432009,1710224027935,2072.05893773,0.0001175,2]
[318432010,1710224043454,6103.52253676,0.0001175,2]
[318432011,1710224045942,2072.05893773,0.0001175,2]
[318432012,1710224062076,2072.05893773,0.0001175,2]
[318432013,1710224083986,2072.05893773,0.0001175,2]
[318432014,1710224103983,2072.05893773,0.0001175,2]
[318432015,1710224123952,2072.05893773,0.0001175,2]
[318432017,1710224140292,2072.05893773,0.0001175,2]
[318432018,1710224148803,7153.97,0.0002,22]
[318432019,1710224155955,1502.9629667,0.0001175,2]
[318432126,1710225032758,-160.42291395,0.0001369,2]
[318432127,1710225032768,-160.42291395,0.00013691,2]
[318432128,1710225032777,-327.85978,0.00014305,2]
[318432129,1710225032787,-5986.41245484,0.00014493,2]
[318432130,1710225032796,-754.682382,0.00014494,2]
[318432131,1710225032805,-2075.97768715,0.0001548,2]
[318432132,1710225032816,-428.85168966,0.00015498,5]
[318432133,1710225032825,-155.39994215,0.00015498,2]
[318432134,1710225032834,-500.0,0.00015499,2]
[318432135,1710225032843,-178.20402408,0.00015499,2]
[318432136,1710225032852,-500.0,0.00015499,2]
[318432137,1710225032862,-500.0,0.00015499,2]
[318432138,1710225032872,-500.0,0.00015499,2]
[318432139,1710225032883,-500.0,0.00015499,2]
[318432140,1710225032893,-500.0,0.00015499,2]
[318432141,1710225032904,-500.0,0.00015499,2]
[318432142,1710225032914,-233.91502,0.00015499,2]
[318432196,1710225038972,-982.3052411,0.00015344,2]
[318432199,1710225038985,-870.7918445,0.00015344,2]
[318432201,1710225038997,-444.01583457,0.00015344,2]
[318432203,1710225039007,-266.08498,0.00015499,2]
[318432205,1710225039016,-501.10112416,0.00015499,2]
[318432207,1710225039025,-500.0,0.00015499,2]
[318432209,1710225039034,-543.13,0.00015499,2]
[318432211,1710225039044,-500.75886064,0.00015499,2]
[318432213,1710225039054,-500.0,0.00015499,2]
[318432215,1710225039064,-500.0,0.00015499,2]
[318432217,1710225039073,-500.0,0.00015499,2]
[318432219,1710225039083,-500.88050585,0.00015499,2]
[318432221,1710225039092,-501.14165524,0.00015499,2]
[318432223,1710225039102,-560.1803879,0.00015499,2]
[318432226,1710225039113,-515.41467961,0.00015499,2]
[318432228,1710225039123,-500.0,0.00015499,2]
[318432229,1710225039132,-500.0,0.00015499,2]
[318432232,1710225039142,-501.87466175,0.00015499,2]
[318432234,1710225039151,-500.0,0.00015499,2]
[318432236,1710225039163,-500.0,0.00015499,2]
[318432238,1710225039174,-664.31,0.00015499,2]
[318432239,1710225039184,-664.31,0.00015499,2]
[318432241,1710225039193,-664.31,0.00015499,2]
[318432243,1710225039205,-664.31,0.00015499,2]
[318432245,1710225039216,-664.31,0.00015499,2]
[318432248,1710225039226,-664.31,0.00015499,2]
[318432250,1710225039236,-664.31,0.00015499,2]
[318432252,1710225039246,-664.31,0.00015499,2]
[318432254,1710225039256,-664.31,0.00015499,2]
[318432256,1710225039265,-664.31,0.00015499,2]
[318432258,1710225039274,-664.31,0.00015499,2]
[318432260,1710225039284,-664.31,0.00015499,2]
[318432261,1710225039293,-664.31,0.00015499,2]
[318432263,1710225039303,-664.31,0.00015499,2]
[318432265,1710225039312,-664.31,0.00015499,2]
[318432267,1710225039321,-664.31,0.00015499,2]
[318432281,1710225039432,-664.31,0.00015499,2]
[318432283,1710225039441,-664.31,0.00015499,2]
[318432285,1710225039453,-664.31,0.00015499,2]
[318432287,1710225039462,-664.31,0.00015499,2]
[318432289,1710225039471,-664.31,0.00015499,2]
[318432291,1710225039480,-664.31,0.00015499,2]
[318432293,1710225039489,-664.31,0.00015499,2]
[318432294,1710225039498,-664.47831655,0.00015499,2]
[318432296,1710225039507,-500.0,0.00015499,2]
[318432298,1710225039516,-213.78357254,0.00015499,2]
[318432300,1710225039525,-500.0,0.00015499,2]
[318432302,1710225039534,-500.0,0.00015499,2]
[318432303,1710225039543,-500.0,0.00015499,2]
[318432305,1710225039554,-524.25395429,0.00015499,2]
[318432307,1710225039563,-500.0,0.00015499,2]
[318432309,1710225039572,-500.0,0.00015499,2]
[318432311,1710225039581,-481.3784003,0.00015499,2]
[318432313,1710225039590,-500.0,0.00015499,2]
[318432315,1710225039599,-500.0,0.00015499,2]
[318432317,1710225039608,-500.0,0.00015499,2]
[318432319,1710225039617,-176.2419505,0.00015499,2]
[318432321,1710225039626,-500.0,0.00015499,2]
[318432323,1710225039635,-500.0,0.00015499,2]
[318432325,1710225039644,-500.0,0.00015499,2]
[318432327,1710225039653,-171.48777387,0.00015499,2]
[318432330,1710225039662,-500.0,0.00015499,2]
[318432332,1710225039672,-500.0,0.00015499,2]
[318432334,1710225039681,-500.0,0.00015499,2]
[318432336,1710225039690,-500.0,0.00015499,2]
[318432337,1710225039701,-500.0,0.00015499,2]
[318432339,1710225039710,-500.0,0.00015499,2]
[318432341,1710225039720,-500.0,0.00015499,2]
[318432343,1710225039729,-500.0,0.00015499,2]
[318432345,1710225039739,-500.0,0.00015499,2]
[318432347,1710225039748,-500.0,0.00015499,2]
[318432349,1710225039758,-500.0,0.00015499,2]
[318432351,1710225039767,-500.0,0.00015499,2]
[318432353,1710225039776,-513.43801904,0.00015499,2]
[318432355,1710225039785,-500.0,0.00015499,2]
[318432357,1710225039794,-500.0,0.00015499,2]
[318432359,1710225039803,-231.22532329,0.00015499,2]
[318432362,1710225039816,-252.22467671,0.00015499,2]
[318432364,1710225039826,-500.0,0.00015499,2]
[318432366,1710225039835,-591.18,0.00015499,2]
[318432368,1710225039844,-500.0,0.00015499,2]
[318432370,1710225039853,-500.0,0.00015499,2]
[318432371,1710225039861,-500.0,0.00015499,2]
[318432372,1710225039870,-638.73164883,0.00015499,2]
[318432373,1710225039879,-501.71747251,0.00015499,2]
[318432374,1710225039887,-614.68,0.00015499,2]
[318432375,1710225039896,-614.68,0.00015499,2]
[318432376,1710225039905,-614.68,0.00015499,2]
[318432377,1710225039914,-614.68,0.00015499,2]
[318432378,1710225039923,-614.68,0.00015499,2]
[318432379,1710225039932,-614.68,0.00015499,2]
[318432380,1710225039941,-614.68,0.00015499,2]
[318432381,1710225039952,-614.68,0.00015499,2]
[318432382,1710225039961,-614.68,0.00015499,2]
[318432383,1710225039970,-382.76595475,0.00015499,2]
[318432454,1710225040683,-231.91404525,0.00015499,2]
[318432456,1710225040693,-271.09783872,0.00015499,2]
[318432814,1710225044066,-343.58216128,0.00015499,2]
[318432816,1710225044076,-614.68,0.00015499,2]
[318432818,1710225044086,-614.68,0.00015499,2]
[318432820,1710225044095,-101.15052333,0.00015499,2]
[318432823,1710225044109,-513.52947667,0.00015499,2]
[318432825,1710225044121,-614.68,0.00015499,2]
[318432827,1710225044131,-304.88652303,0.00015499,2]
[318432829,1710225044144,-309.79347697,0.00015499,2]
[318432830,1710225044155,-41.33329746,0.00015499,2]
[318433181,1710225047713,-573.34670254,0.00015499,2]
[318433183,1710225047722,-614.68,0.00015499,2]
[318433185,1710225047731,-614.68,0.00015499,2]
[318433187,1710225047740,-614.68,0.00015499,2]
[318433189,1710225047750,-614.68,0.00015499,2]
[318433191,1710225047759,-614.68,0.00015499,2]
[318433193,1710225047768,-614.68,0.00015499,2]
[318433195,1710225047777,-614.89714918,0.00015499,2]
[318433197,1710225047787,-500.0,0.00015499,2]
[318433199,1710225047796,-579.1454916,0.00015499,2]
[318433201,1710225047805,-226.69745231,0.00015499,2]
[318433203,1710225047814,-500.0,0.00015499,2]
[318433205,1710225047823,-14013.74696926,0.000155,2]
[318434260,1710225116805,-1914.08341986,0.00015345,2]